[Event "*** Titled Tuesday Blitz"]
[Site "Chess.com"]
[Date "2021.03.09"]
[Round "7"]
[White "eduardoperalta"]
[Black "jposthuma"]
[Result "0-1"]
[WhiteElo "2530"]
[BlackElo "2666"]
[TimeControl "180+1"]
[EndTime "11:22:17 PST"]
[Termination "jposthuma won by resignation"]

1. d4 {[%clk 0:03:00.9]} 1... Nf6 {[%clk 0:02:51.4]} 2. c4 {[%clk 0:02:59.8]}
2... c5 {[%clk 0:02:51.5]} 3. d5 {[%clk 0:02:59]} 3... b5 {[%clk 0:02:51.7]} 4.
Nf3 {[%clk 0:02:58]} 4... g6 {[%clk 0:02:51.5]} 5. a4 {[%clk 0:02:55.8]} 5...
Qa5+ {[%clk 0:02:50.9]} 6. Bd2 {[%clk 0:02:53]} 6... b4 {[%clk 0:02:51.2]} 7. b3
{[%clk 0:02:51.6]} 7... Bg7 {[%clk 0:02:51.3]} 8. Ra2 {[%clk 0:02:51.5]} 8...
O-O {[%clk 0:02:49.9]} 9. g3 {[%clk 0:02:40.4]} 9... e6 {[%clk 0:02:49.9]} 10.
dxe6 {[%clk 0:02:30.1]} 10... fxe6 {[%clk 0:02:40.9]} 11. Bg2 {[%clk 0:02:29.8]}
11... Bb7 {[%clk 0:02:36]} 12. O-O {[%clk 0:02:28]} 12... d5 {[%clk 0:02:27.2]}
13. Ne5 {[%clk 0:02:19.3]} 13... Ne4 {[%clk 0:02:21.8]} 14. f4 {[%clk
0:01:49.7]} 14... Qc7 {[%clk 0:02:09.4]} 15. cxd5 {[%clk 0:01:45.5]} 15... exd5
{[%clk 0:02:07]} 16. Rc2 {[%clk 0:01:43.6]} 16... Bxe5 {[%clk 0:01:46.1]} 17.
fxe5 {[%clk 0:01:42.5]} 17... Rxf1+ {[%clk 0:01:42]} 18. Qxf1 {[%clk 0:01:40.7]}
18... Nxd2 {[%clk 0:01:41.6]} 19. Nxd2 {[%clk 0:01:33]} 19... Qxe5 {[%clk
0:01:41.3]} 20. Nc4 {[%clk 0:01:26.4]} 20... Qe7 {[%clk 0:01:24.2]} 21. Na5
{[%clk 0:01:24.2]} 21... Na6 {[%clk 0:00:50.7]} 22. Nxb7 {[%clk 0:01:11.6]}
22... Qxb7 {[%clk 0:00:51.6]} 23. Qf3 {[%clk 0:01:05.8]} 23... Rd8 {[%clk
0:00:39.7]} 24. Qf6 {[%clk 0:01:03.4]} 24... Qb6 {[%clk 0:00:33.6]} 25. Qe5
{[%clk 0:00:55.2]} 25... Qd6 {[%clk 0:00:31.7]} 26. Qg5 {[%clk 0:00:49.4]} 26...
Nc7 {[%clk 0:00:28.8]} 27. h4 {[%clk 0:00:46.7]} 27... Ne6 {[%clk 0:00:27.6]}
28. Qf6 {[%clk 0:00:45.3]} 28... Rf8 {[%clk 0:00:20.8]} 29. Qb2 {[%clk
0:00:40.7]} 29... Nd4 {[%clk 0:00:19.3]} 30. Rd2 {[%clk 0:00:31.6]} 30... Qxg3
{[%clk 0:00:19.3]} 31. Rxd4 {[%clk 0:00:29.1]} 31... Qe3+ {[%clk 0:00:17.6]} 32.
Kh1 {[%clk 0:00:27.4]} 32... Qxd4 {[%clk 0:00:17.5]} 33. Qc2 {[%clk 0:00:25.2]}
33... Qxh4+ {[%clk 0:00:17.4]} 34. Kg1 {[%clk 0:00:25.7]} 34... Qd4+ {[%clk
0:00:17.5]} 35. Kh1 {[%clk 0:00:26.1]} 35... Rf2 {[%clk 0:00:17.1]} 36. Qc1
{[%clk 0:00:02]} 36... Qh4+ {[%clk 0:00:15.2]} 37. Kg1 {[%clk 0:00:02.4]} 37...
Qd4 {[%clk 0:00:10.1]} 38. e3 {[%clk 0:00:01.6]} 38... Rxg2+ {[%clk 0:00:09]}
39. Kxg2 {[%clk 0:00:01.9]} 39... Qe4+ {[%clk 0:00:09.3]} 40. Kf2 {[%clk
0:00:02.5]} 40... c4 {[%clk 0:00:09.3]} 41. Qd2 {[%clk 0:00:02.5]} 41... cxb3
{[%clk 0:00:06.4]} 42. Kg1 {[%clk 0:00:02.4]} 42... Qb1+ {[%clk 0:00:06.1]} 43.
Kf2 {[%clk 0:00:01.4]} 43... Qc2 {[%clk 0:00:06.7]} 44. Ke2 {[%clk 0:00:02.3]}
44... Qxd2+ {[%clk 0:00:07]} 45. Kxd2 {[%clk 0:00:03.2]} 45... h5 {[%clk
0:00:07.4]} 46. Kc1 {[%clk 0:00:03.5]} 46... h4 {[%clk 0:00:08]} 47. Kb2 {[%clk
0:00:04.4]} 47... h3 {[%clk 0:00:08.6]} 48. Kxb3 {[%clk 0:00:05.3]} 48... h2
{[%clk 0:00:09.3]} 49. Kxb4 {[%clk 0:00:06.2]} 49... h1=Q {[%clk 0:00:09.9]} 50.
Kb5 {[%clk 0:00:07.1]} 50... Qe4 {[%clk 0:00:10.4]} 51. Ka6 {[%clk 0:00:08]}
51... Qxe3 {[%clk 0:00:10.3]} 52. a5 {[%clk 0:00:08.8]} 52... Qa3 {[%clk
0:00:10.4]} 53. Kb7 {[%clk 0:00:09.5]} 53... Qxa5 {[%clk 0:00:10.6]} 54. Ka8
{[%clk 0:00:10.4]} 54... Qb5 {[%clk 0:00:10.6]} 0-1

[Event "*** Titled Tuesday Blitz"]
[Site "Chess.com"]
[Date "2021.03.09"]
[Round "7"]
[White "tlomigtlis"]
[Black "rynos0411"]
[Result "0-1"]
[WhiteElo "2584"]
[BlackElo "2459"]
[TimeControl "180+1"]
[EndTime "11:22:17 PST"]
[Termination "rynos0411 won by checkmate"]

1. d4 {[%clk 0:03:00.9]} 1... d5 {[%clk 0:02:52.5]} 2. c4 {[%clk 0:03:01.1]}
2... c6 {[%clk 0:02:53]} 3. Nf3 {[%clk 0:03:00.9]} 3... Nf6 {[%clk 0:02:53.3]}
4. Nc3 {[%clk 0:03:01.2]} 4... e6 {[%clk 0:02:52.7]} 5. Bg5 {[%clk 0:03:00.6]}
5... Nbd7 {[%clk 0:02:51.3]} 6. e3 {[%clk 0:03:00.4]} 6... Qa5 {[%clk
0:02:51.8]} 7. cxd5 {[%clk 0:02:59.5]} 7... Nxd5 {[%clk 0:02:38.2]} 8. Rc1
{[%clk 0:02:58.8]} 8... Nxc3 {[%clk 0:02:37.6]} 9. bxc3 {[%clk 0:02:59.5]} 9...
Ba3 {[%clk 0:02:37.9]} 10. Rc2 {[%clk 0:02:59.8]} 10... b6 {[%clk 0:02:38]} 11.
Bd3 {[%clk 0:02:58.9]} 11... Ba6 {[%clk 0:02:37.5]} 12. O-O {[%clk 0:02:59.1]}
12... O-O {[%clk 0:02:34.4]} 13. c4 {[%clk 0:02:56.6]} 13... Bd6 {[%clk
0:02:32]} 14. e4 {[%clk 0:02:52.7]} 14... e5 {[%clk 0:02:28.4]} 15. c5 {[%clk
0:02:39.6]} 15... Bxd3 {[%clk 0:02:02.3]} 16. Qxd3 {[%clk 0:02:40.5]} 16... Bc7
{[%clk 0:02:02.4]} 17. cxb6 {[%clk 0:02:35]} 17... Bxb6 {[%clk 0:01:55.9]} 18.
Bd2 {[%clk 0:02:16]} 18... Qa4 {[%clk 0:01:45.2]} 19. dxe5 {[%clk 0:02:09.1]}
19... Rfd8 {[%clk 0:01:45.3]} 20. Qe2 {[%clk 0:01:45.4]} 20... Qxc2 {[%clk
0:01:42.2]} 21. Rc1 {[%clk 0:01:21.2]} 21... Qa4 {[%clk 0:01:34.1]} 22. e6
{[%clk 0:01:18.4]} 22... fxe6 {[%clk 0:01:28.8]} 23. Ng5 {[%clk 0:01:18]} 23...
Nf8 {[%clk 0:01:27.4]} 24. Bc3 {[%clk 0:01:08.9]} 24... Bd4 {[%clk 0:01:23.7]}
25. Qh5 {[%clk 0:01:08.2]} 25... Bxc3 {[%clk 0:01:00.3]} 26. Qf7+ {[%clk
0:01:05.3]} 26... Kh8 {[%clk 0:01:00.2]} 27. h4 {[%clk 0:01:05.3]} 27... Rd1+
{[%clk 0:00:50]} 28. Rxd1 {[%clk 0:01:05]} 28... Qxd1+ {[%clk 0:00:50.9]} 29.
Kh2 {[%clk 0:01:05.5]} 29... Qd6+ {[%clk 0:00:46.6]} 30. f4 {[%clk 0:01:03.1]}
30... Qd7 {[%clk 0:00:39.6]} 31. Qh5 {[%clk 0:01:02.4]} 31... g6 {[%clk
0:00:39.3]} 32. Qf3 {[%clk 0:01:01.2]} 32... Bf6 {[%clk 0:00:38.7]} 33. Nh3
{[%clk 0:01:00.4]} 33... Bxh4 {[%clk 0:00:37.3]} 34. Qc3+ {[%clk 0:01:00.5]}
34... Kg8 {[%clk 0:00:35.1]} 35. g3 {[%clk 0:00:59.1]} 35... Be7 {[%clk
0:00:33.5]} 36. Nf2 {[%clk 0:00:59.3]} 36... Rd8 {[%clk 0:00:33.3]} 37. Kh3
{[%clk 0:00:52.7]} 37... e5+ {[%clk 0:00:31.4]} 38. g4 {[%clk 0:00:43]} 38...
exf4 {[%clk 0:00:29.3]} 39. Kg2 {[%clk 0:00:39.5]} 39... Ne6 {[%clk 0:00:29.1]}
40. Qc4 {[%clk 0:00:36.9]} 40... Kg7 {[%clk 0:00:23.9]} 41. g5 {[%clk
0:00:31.7]} 41... Nxg5 {[%clk 0:00:21.1]} 42. Qc3+ {[%clk 0:00:29.4]} 42... Bf6
{[%clk 0:00:20.6]} 43. e5 {[%clk 0:00:29.6]} 43... Qd5+ {[%clk 0:00:20.5]} 44.
Kg1 {[%clk 0:00:29.7]} 44... Bxe5 {[%clk 0:00:20.2]} 45. Qa3 {[%clk 0:00:29.5]}
45... Nf3+ {[%clk 0:00:18.3]} 46. Kf1 {[%clk 0:00:29.9]} 46... Nd2+ {[%clk
0:00:16.5]} 47. Kg1 {[%clk 0:00:30]} 47... Rd7 {[%clk 0:00:16]} 48. Kh2 {[%clk
0:00:21.6]} 48... Qf3 {[%clk 0:00:13.8]} 49. Qc5 {[%clk 0:00:21.2]} 49... Qd5
{[%clk 0:00:10.3]} 50. Qa3 {[%clk 0:00:20.5]} 50... f3+ {[%clk 0:00:10.7]} 51.
Kh1 {[%clk 0:00:17.9]} 51... Ne4 {[%clk 0:00:11]} 52. Nxe4 {[%clk 0:00:14.5]}
52... Qxe4 {[%clk 0:00:11.9]} 53. Qc1 {[%clk 0:00:12.5]} 53... Qe2 {[%clk
0:00:10.8]} 54. Qg1 {[%clk 0:00:09.1]} 54... Rd1 {[%clk 0:00:10.6]} 55. a4
{[%clk 0:00:09.6]} 55... Rxg1+ {[%clk 0:00:10.2]} 56. Kxg1 {[%clk 0:00:09.8]}
56... Qg2# {[%clk 0:00:10.9]} 0-1

[Event "*** Titled Tuesday Blitz"]
[Site "Chess.com"]
[Date "2021.03.09"]
[Round "7"]
[White "Steegersee"]
[Black "Cherone"]
[Result "0-1"]
[WhiteElo "2264"]
[BlackElo "2476"]
[TimeControl "180+1"]
[EndTime "11:22:18 PST"]
[Termination "Cherone won on time"]

1. c4 {[%clk 0:03:00.9]} 1... e5 {[%clk 0:02:59.5]} 2. Nc3 {[%clk 0:02:57.5]}
2... Bb4 {[%clk 0:02:58.8]} 3. Nf3 {[%clk 0:02:55.9]} 3... Bxc3 {[%clk
0:02:58.3]} 4. bxc3 {[%clk 0:02:50.3]} 4... e4 {[%clk 0:02:58]} 5. Nd4 {[%clk
0:02:50.7]} 5... Nf6 {[%clk 0:02:57.4]} 6. g3 {[%clk 0:02:48]} 6... c5 {[%clk
0:02:55]} 7. Nc2 {[%clk 0:02:47.1]} 7... d5 {[%clk 0:02:54.6]} 8. cxd5 {[%clk
0:02:30]} 8... Qxd5 {[%clk 0:02:53.4]} 9. Bg2 {[%clk 0:02:30.3]} 9... O-O {[%clk
0:02:49.7]} 10. d3 {[%clk 0:02:20.3]} 10... Qe5 {[%clk 0:02:32.9]} 11. O-O
{[%clk 0:01:39.1]} 11... Qxc3 {[%clk 0:02:22.2]} 12. dxe4 {[%clk 0:01:31.8]}
12... Nc6 {[%clk 0:02:13.4]} 13. Bd2 {[%clk 0:01:19.1]} 13... Qe5 {[%clk
0:02:05.4]} 14. f4 {[%clk 0:01:18.4]} 14... Qe7 {[%clk 0:01:59.9]} 15. e5 {[%clk
0:01:18.7]} 15... Ne8 {[%clk 0:01:53.8]} 16. Ne3 {[%clk 0:01:17.3]} 16... Nc7
{[%clk 0:01:53.3]} 17. Bc3 {[%clk 0:01:10.6]} 17... Rd8 {[%clk 0:01:41.2]} 18.
Qb1 {[%clk 0:01:09.4]} 18... Nd4 {[%clk 0:01:29.4]} 19. Bxd4 {[%clk 0:00:58]}
19... cxd4 {[%clk 0:01:25.3]} 20. Nc4 {[%clk 0:00:58.4]} 20... Nd5 {[%clk
0:01:06.5]} 21. Nd6 {[%clk 0:00:54.9]} 21... Ne3 {[%clk 0:01:06.7]} 22. Rc1
{[%clk 0:00:48.1]} 22... Nxg2 {[%clk 0:01:04.6]} 23. Kxg2 {[%clk 0:00:45.5]}
23... Rxd6 {[%clk 0:01:03]} 24. exd6 {[%clk 0:00:45.4]} 24... Qxe2+ {[%clk
0:01:02.9]} 25. Kg1 {[%clk 0:00:45.5]} 25... Qe3+ {[%clk 0:00:49.2]} 26. Kg2
{[%clk 0:00:44.7]} 26... b6 {[%clk 0:00:35.4]} 27. Rc7 {[%clk 0:00:12.3]} 27...
Be6 {[%clk 0:00:28.5]} 28. Qb5 {[%clk 0:00:07.7]} 28... Bg4 {[%clk 0:00:20.6]}
29. Rc2 {[%clk 0:00:04.8]} 29... Qe4+ {[%clk 0:00:18.6]} 30. Kg1 {[%clk
0:00:04.5]} 30... Qxc2 {[%clk 0:00:16.9]} 31. Qd5 {[%clk 0:00:04.9]} 31... Rd8
{[%clk 0:00:15.6]} 32. Qg5 {[%clk 0:00:02.9]} 32... Rxd6 {[%clk 0:00:12.6]} 33.
Qxg4 {[%clk 0:00:03.8]} 33... h6 {[%clk 0:00:12.7]} 34. Qf3 {[%clk 0:00:03.8]}
34... d3 {[%clk 0:00:12.4]} 35. Qa8+ {[%clk 0:00:03.4]} 35... Kh7 {[%clk
0:00:11.5]} 36. Qe4+ {[%clk 0:00:04.3]} 36... g6 {[%clk 0:00:10.6]} 37. Qe7
{[%clk 0:00:04.9]} 37... Qc5+ {[%clk 0:00:09.7]} 38. Kf1 {[%clk 0:00:03.1]}
38... Kg7 {[%clk 0:00:10.3]} 39. Qe1 {[%clk 0:00:01.9]} 39... d2 {[%clk
0:00:10.2]} 40. Qe2 {[%clk 0:00:02.3]} 40... Qd4 {[%clk 0:00:09.8]} 41. Rd1
{[%clk 0:00:02.7]} 41... Qd3 {[%clk 0:00:10.3]} 42. Kf2 {[%clk 0:00:02.1]} 42...
Qxe2+ {[%clk 0:00:09.5]} 43. Kxe2 {[%clk 0:00:03]} 43... Kf6 {[%clk 0:00:10.2]}
44. Rxd2 {[%clk 0:00:03.1]} 44... Rxd2+ {[%clk 0:00:10.4]} 45. Kxd2 {[%clk
0:00:04]} 45... Kf5 {[%clk 0:00:11.3]} 46. Ke3 {[%clk 0:00:04.5]} 46... Kg4
{[%clk 0:00:11.7]} 47. Kf2 {[%clk 0:00:02.7]} 47... Kh3 {[%clk 0:00:11.9]} 48.
Kg1 {[%clk 0:00:01.9]} 48... b5 {[%clk 0:00:12.3]} 0-1

[Event "*** Titled Tuesday Blitz"]
[Site "Chess.com"]
[Date "2021.03.09"]
[Round "7"]
[White "Treacherous_horse64"]
[Black "Manukyan_Artak"]
[Result "1/2-1/2"]
[WhiteElo "2520"]
[BlackElo "2396"]
[TimeControl "180+1"]
[EndTime "11:22:20 PST"]
[Termination "Game drawn by repetition"]

1. d4 {[%clk 0:02:59.9]} 1... Nf6 {[%clk 0:02:59.5]} 2. c4 {[%clk 0:02:59.9]}
2... g6 {[%clk 0:02:59.9]} 3. Nc3 {[%clk 0:02:59.5]} 3... Bg7 {[%clk 0:03:00.2]}
4. g3 {[%clk 0:02:59.7]} 4... O-O {[%clk 0:03:01.1]} 5. Bg2 {[%clk 0:03:00.3]}
5... c6 {[%clk 0:03:01.5]} 6. Nf3 {[%clk 0:02:53.4]} 6... d5 {[%clk 0:03:01.5]}
7. O-O {[%clk 0:02:53.7]} 7... Ne4 {[%clk 0:03:01.1]} 8. cxd5 {[%clk 0:02:30.6]}
8... cxd5 {[%clk 0:02:59.8]} 9. Qb3 {[%clk 0:02:23.8]} 9... Nxc3 {[%clk
0:02:56.5]} 10. bxc3 {[%clk 0:02:24.7]} 10... Nc6 {[%clk 0:02:55.6]} 11. Nd2
{[%clk 0:02:12.1]} 11... e6 {[%clk 0:02:50.9]} 12. e4 {[%clk 0:02:11.4]} 12...
dxe4 {[%clk 0:02:44.2]} 13. Nxe4 {[%clk 0:02:09.1]} 13... e5 {[%clk 0:01:58.3]}
14. d5 {[%clk 0:01:50.9]} 14... Na5 {[%clk 0:01:58]} 15. Qb4 {[%clk 0:01:47.6]}
15... b6 {[%clk 0:01:52.9]} 16. Ba3 {[%clk 0:01:38]} 16... Ba6 {[%clk
0:01:51.6]} 17. Rfd1 {[%clk 0:01:37]} 17... f5 {[%clk 0:01:34.7]} 18. Nd6 {[%clk
0:01:31.7]} 18... e4 {[%clk 0:01:28.4]} 19. Rac1 {[%clk 0:01:29.9]} 19... h5
{[%clk 0:01:18.3]} 20. c4 {[%clk 0:01:29.1]} 20... Kh7 {[%clk 0:01:07.7]} 21.
Nb5 {[%clk 0:01:25.7]} 21... Rf7 {[%clk 0:00:49]} 22. Nd4 {[%clk 0:01:25]} 22...
Bf8 {[%clk 0:00:45.7]} 23. Qa4 {[%clk 0:01:18.7]} 23... Bxa3 {[%clk 0:00:44.8]}
24. Qxa3 {[%clk 0:01:19.6]} 24... Bxc4 {[%clk 0:00:40.9]} 25. Nc6 {[%clk
0:01:12.7]} 25... Nxc6 {[%clk 0:00:36.9]} 26. dxc6 {[%clk 0:01:13.6]} 26... Bd3
{[%clk 0:00:36.8]} 27. Bf1 {[%clk 0:00:32]} 27... Qe7 {[%clk 0:00:36.5]} 28.
Qxe7 {[%clk 0:00:30.9]} 28... Rxe7 {[%clk 0:00:37.4]} 29. Bxd3 {[%clk
0:00:31.5]} 29... exd3 {[%clk 0:00:37.3]} 30. Rxd3 {[%clk 0:00:32.4]} 30... Rc8
{[%clk 0:00:37.8]} 31. Rd6 {[%clk 0:00:29.9]} 31... Kg7 {[%clk 0:00:33.9]} 32.
Kg2 {[%clk 0:00:28.9]} 32... Kf7 {[%clk 0:00:32.9]} 33. f4 {[%clk 0:00:28.2]}
33... Re6 {[%clk 0:00:23.8]} 34. Rd7+ {[%clk 0:00:14.4]} 34... Re7 {[%clk
0:00:23.9]} 35. Rb7 {[%clk 0:00:14.5]} 35... Rcc7 {[%clk 0:00:19.4]} 36. Rb8
{[%clk 0:00:11.5]} 36... Re6 {[%clk 0:00:19]} 37. Rh8 {[%clk 0:00:06.7]} 37...
Kg7 {[%clk 0:00:19.1]} 38. Rd8 {[%clk 0:00:03.1]} 38... Rexc6 {[%clk 0:00:18.8]}
39. Rxc6 {[%clk 0:00:02.8]} 39... Rxc6 {[%clk 0:00:19.7]} 40. Rd7+ {[%clk
0:00:03.7]} 40... Kf6 {[%clk 0:00:20.3]} 41. Rxa7 {[%clk 0:00:04.6]} 41... Ke6
{[%clk 0:00:20.6]} 42. Kf3 {[%clk 0:00:05.1]} 42... Kd5 {[%clk 0:00:20.7]} 43.
h4 {[%clk 0:00:05.4]} 43... Kc4 {[%clk 0:00:21]} 44. Ke3 {[%clk 0:00:05.5]}
44... b5 {[%clk 0:00:20.6]} 45. Kd2 {[%clk 0:00:05.1]} 45... Re6 {[%clk
0:00:18.7]} 46. Rd7 {[%clk 0:00:04.9]} 46... b4 {[%clk 0:00:18.5]} 47. Rc7+
{[%clk 0:00:05.2]} 47... Kd4 {[%clk 0:00:18.8]} 48. Rb7 {[%clk 0:00:05.7]} 48...
Kc4 {[%clk 0:00:17.4]} 49. Rc7+ {[%clk 0:00:05.8]} 49... Kd4 {[%clk 0:00:16.9]}
50. Rd7+ {[%clk 0:00:05.7]} 50... Kc4 {[%clk 0:00:17]} 51. Rc7+ {[%clk
0:00:06.2]} 1/2-1/2

[Event "*** Titled Tuesday Blitz"]
[Site "Chess.com"]
[Date "2021.03.09"]
[Round "7"]
[White "Firouzja2003"]
[Black "FairChess_on_YouTube"]
[Result "1-0"]
[WhiteElo "3146"]
[BlackElo "2971"]
[TimeControl "180+1"]
[EndTime "11:22:22 PST"]
[Termination "Firouzja2003 won on time"]

1. e4 {[%clk 0:03:00.9]} 1... c5 {[%clk 0:03:00.1]} 2. Nc3 {[%clk 0:02:56.2]}
2... a6 {[%clk 0:02:57.9]} 3. g3 {[%clk 0:02:55.2]} 3... b5 {[%clk 0:02:58]} 4.
Bg2 {[%clk 0:02:54.6]} 4... Bb7 {[%clk 0:02:58.5]} 5. Nge2 {[%clk 0:02:54.2]}
5... e6 {[%clk 0:02:57.2]} 6. O-O {[%clk 0:02:54.4]} 6... Nf6 {[%clk 0:02:54.4]}
7. d3 {[%clk 0:02:52.9]} 7... d6 {[%clk 0:02:46]} 8. h3 {[%clk 0:02:50.8]} 8...
Nbd7 {[%clk 0:02:41.3]} 9. f4 {[%clk 0:02:45.7]} 9... b4 {[%clk 0:02:32.2]} 10.
Nb1 {[%clk 0:02:44.6]} 10... Be7 {[%clk 0:02:30.8]} 11. Nd2 {[%clk 0:02:42]}
11... O-O {[%clk 0:02:29.5]} 12. Nf3 {[%clk 0:02:36]} 12... c4 {[%clk 0:02:09]}
13. Be3 {[%clk 0:02:31.8]} 13... Rc8 {[%clk 0:02:08.2]} 14. g4 {[%clk 0:02:31]}
14... Nc5 {[%clk 0:01:56.3]} 15. Ng3 {[%clk 0:02:28.8]} 15... a5 {[%clk
0:01:43.7]} 16. g5 {[%clk 0:02:25.3]} 16... Nfd7 {[%clk 0:01:42.1]} 17. Rf2
{[%clk 0:02:23.8]} 17... cxd3 {[%clk 0:01:31.2]} 18. cxd3 {[%clk 0:02:23.4]}
18... d5 {[%clk 0:01:28.6]} 19. Nd4 {[%clk 0:01:47.5]} 19... dxe4 {[%clk
0:01:25.4]} 20. dxe4 {[%clk 0:01:48.4]} 20... e5 {[%clk 0:01:19.5]} 21. Ndf5
{[%clk 0:01:46.7]} 21... exf4 {[%clk 0:01:19]} 22. Bxf4 {[%clk 0:01:45.2]} 22...
Bxg5 {[%clk 0:01:16.6]} 23. Qg4 {[%clk 0:01:31.7]} 23... Ne6 {[%clk 0:01:11.7]}
24. Bxg5 {[%clk 0:01:23.2]} 24... Qxg5 {[%clk 0:01:06.2]} 25. Qxg5 {[%clk
0:01:22.3]} 25... Nxg5 {[%clk 0:01:05.6]} 26. Ne7+ {[%clk 0:01:23]} 26... Kh8
{[%clk 0:01:01.2]} 27. Nxc8 {[%clk 0:01:23]} 27... Bxc8 {[%clk 0:00:58.6]} 28.
Rf5 {[%clk 0:01:22.7]} 28... f6 {[%clk 0:00:52.3]} 29. h4 {[%clk 0:01:20]} 29...
Ne6 {[%clk 0:00:47.9]} 30. Rxa5 {[%clk 0:01:19.7]} 30... Ne5 {[%clk 0:00:48.2]}
31. Ra8 {[%clk 0:01:10.3]} 31... Nc7 {[%clk 0:00:39.5]} 32. Rb8 {[%clk
0:01:05.7]} 32... Na6 {[%clk 0:00:36.6]} 33. Rb6 {[%clk 0:00:56.8]} 33... Nc4
{[%clk 0:00:34.9]} 34. Rc6 {[%clk 0:00:56.6]} 34... Ne5 {[%clk 0:00:33]} 35. Rc2
{[%clk 0:00:53.7]} 35... Be6 {[%clk 0:00:32.1]} 36. b3 {[%clk 0:00:53.7]} 36...
Nb8 {[%clk 0:00:29.6]} 37. Rd1 {[%clk 0:00:52.4]} 37... Nbd7 {[%clk 0:00:24.1]}
38. Rd6 {[%clk 0:00:49.6]} 38... Bg4 {[%clk 0:00:23.1]} 39. Rd4 {[%clk
0:00:49.6]} 39... Rb8 {[%clk 0:00:20.5]} 40. Rxb4 {[%clk 0:00:46]} 40... Ra8
{[%clk 0:00:16.3]} 41. Ra4 {[%clk 0:00:40.7]} 41... Rd8 {[%clk 0:00:14.9]} 42.
Rd4 {[%clk 0:00:40.7]} 42... h5 {[%clk 0:00:14.6]} 43. Nf5 {[%clk 0:00:38.6]}
43... Ra8 {[%clk 0:00:13.4]} 44. a4 {[%clk 0:00:37.8]} 44... g6 {[%clk
0:00:09.2]} 45. Ne3 {[%clk 0:00:35.7]} 45... Be6 {[%clk 0:00:07.9]} 46. Nd5
{[%clk 0:00:35.9]} 46... g5 {[%clk 0:00:06.9]} 47. Rc3 {[%clk 0:00:28.3]} 47...
Rg8 {[%clk 0:00:06.5]} 48. hxg5 {[%clk 0:00:27.2]} 48... fxg5 {[%clk 0:00:05.8]}
49. Ne7 {[%clk 0:00:25.2]} 49... Re8 {[%clk 0:00:04.3]} 50. Nf5 {[%clk
0:00:25.5]} 50... h4 {[%clk 0:00:04.4]} 51. a5 {[%clk 0:00:22.9]} 51... Nf6
{[%clk 0:00:02.3]} 52. a6 {[%clk 0:00:20.7]} 52... Ra8 {[%clk 0:00:01.4]} 53.
Rd6 {[%clk 0:00:20.8]} 53... Bxf5 {[%clk 0:00:01.9]} 54. exf5 {[%clk 0:00:19.9]}
1-0

[Event "*** Titled Tuesday Blitz"]
[Site "Chess.com"]
[Date "2021.03.09"]
[Round "7"]
[White "mikolka1985"]
[Black "pastouche06"]
[Result "1-0"]
[WhiteElo "2693"]
[BlackElo "2551"]
[TimeControl "180+1"]
[EndTime "11:22:24 PST"]
[Termination "mikolka1985 won by checkmate"]

1. d4 {[%clk 0:02:59.3]} 1... d5 {[%clk 0:02:57.5]} 2. c4 {[%clk 0:02:58.6]}
2... e6 {[%clk 0:02:57.5]} 3. Nc3 {[%clk 0:02:57.5]} 3... a6 {[%clk 0:02:57.6]}
4. cxd5 {[%clk 0:02:55.9]} 4... exd5 {[%clk 0:02:58.5]} 5. Nf3 {[%clk
0:02:55.9]} 5... Nf6 {[%clk 0:02:58.3]} 6. Bf4 {[%clk 0:02:55.9]} 6... Bd6
{[%clk 0:02:57.7]} 7. e3 {[%clk 0:02:53.4]} 7... O-O {[%clk 0:02:55.1]} 8. Bg5
{[%clk 0:02:51.2]} 8... Be6 {[%clk 0:02:49.5]} 9. Bd3 {[%clk 0:02:50.5]} 9...
Nbd7 {[%clk 0:02:46.4]} 10. O-O {[%clk 0:02:49.7]} 10... c6 {[%clk 0:02:46.7]}
11. h3 {[%clk 0:02:47.3]} 11... Qc7 {[%clk 0:02:40.4]} 12. Qd2 {[%clk
0:02:47.3]} 12... h6 {[%clk 0:02:40]} 13. Bf4 {[%clk 0:02:46.6]} 13... Rfe8
{[%clk 0:02:34.3]} 14. Rac1 {[%clk 0:02:40.2]} 14... Re7 {[%clk 0:02:14.3]} 15.
Rfe1 {[%clk 0:02:36.3]} 15... g5 {[%clk 0:01:51]} 16. Bxd6 {[%clk 0:02:35]}
16... Qxd6 {[%clk 0:01:51.9]} 17. Qc2 {[%clk 0:02:14]} 17... Rae8 {[%clk
0:01:35.8]} 18. Ne2 {[%clk 0:02:13.1]} 18... g4 {[%clk 0:01:34.9]} 19. hxg4
{[%clk 0:02:11.9]} 19... Bxg4 {[%clk 0:01:34.7]} 20. Nh2 {[%clk 0:02:10.5]}
20... Bxe2 {[%clk 0:01:27.1]} 21. Rxe2 {[%clk 0:02:09.1]} 21... Kh8 {[%clk
0:01:25.2]} 22. Bf5 {[%clk 0:02:07]} 22... Rg8 {[%clk 0:01:24]} 23. Bh3 {[%clk
0:02:01.8]} 23... Ne4 {[%clk 0:01:21.9]} 24. Rce1 {[%clk 0:01:44.5]} 24... f6
{[%clk 0:01:07.4]} 25. Nf3 {[%clk 0:01:29.6]} 25... Reg7 {[%clk 0:01:02.3]} 26.
Nh4 {[%clk 0:01:28.1]} 26... Rg5 {[%clk 0:00:49.4]} 27. Nf5 {[%clk 0:01:12.6]}
27... Qf8 {[%clk 0:00:49.3]} 28. f3 {[%clk 0:01:11.8]} 28... Nd6 {[%clk
0:00:46.7]} 29. e4 {[%clk 0:01:00.6]} 29... dxe4 {[%clk 0:00:35.3]} 30. fxe4
{[%clk 0:01:00.1]} 30... Nxf5 {[%clk 0:00:35.5]} 31. Bxf5 {[%clk 0:00:59.3]}
31... Qd6 {[%clk 0:00:36]} 32. Qc3 {[%clk 0:00:56.2]} 32... Nf8 {[%clk
0:00:27.9]} 33. e5 {[%clk 0:00:49]} 33... Qd5 {[%clk 0:00:22.3]} 34. Be4 {[%clk
0:00:42.9]} 34... Qe6 {[%clk 0:00:22.4]} 35. Bf3 {[%clk 0:00:40]} 35... fxe5
{[%clk 0:00:20.4]} 36. Rxe5 {[%clk 0:00:38]} 36... Qf6 {[%clk 0:00:20.9]} 37.
Qb3 {[%clk 0:00:32.2]} 37... Rg3 {[%clk 0:00:19.6]} 38. Rf1 {[%clk 0:00:15.5]}
38... Ng6 {[%clk 0:00:17.7]} 39. Re4 {[%clk 0:00:13.2]} 39... Nf4 {[%clk
0:00:13.4]} 40. Qc2 {[%clk 0:00:08.8]} 40... Qh4 {[%clk 0:00:06.9]} 41. Rxf4
{[%clk 0:00:07.1]} 41... Qxf4 {[%clk 0:00:07.8]} 42. Qc3 {[%clk 0:00:06]} 42...
Qf6 {[%clk 0:00:05.8]} 43. a3 {[%clk 0:00:04.5]} 43... h5 {[%clk 0:00:05.6]} 44.
Qd2 {[%clk 0:00:02.1]} 44... h4 {[%clk 0:00:05.1]} 45. Bd5 {[%clk 0:00:01.8]}
45... Qxf1+ {[%clk 0:00:01.3]} 46. Kxf1 {[%clk 0:00:01.5]} 46... cxd5 {[%clk
0:00:02.1]} 47. Qh6# {[%clk 0:00:01.6]} 1-0